[Event "Azerbaijan-ch 1st League 2025"]
[Site "Baku"]
[Date "2025.01.08"]
[Round "3.14"]
[White "Halafov, Ilgar"]
[Black "Idrisov, Tabriz"]
[Result "1-0"]
[Annotator "TA"]
[ECO "A46"]
[WhiteElo "1990"]
[BlackElo "2073"]
[PlyCount "191"]
[EventDate "2025.01.05"]
[EventType "swiss"]
[EventCountry "AZE"]
[SourceTitle "playchess.com"]
[Source "ChessBase"]
[SourceQuality "1"]
[TimeControl "40/5400+30:1800+30"]

{[%evp 9,191,17,34,-20,0,0,0,-17,16,7,7,7,8,0,0,0,0,0,57,0,28,0,41,31,39,41,59,42,59,58,44,-24,12,0,0,9,15,20,158,0,0,0,0,0,41,0,0,0,0,0,0,-26,17,13,0,0,24,0,94,85,279,91,113,120,137,135,147,156,197,109,179,133,205,191,212,161,145,91,84,85,86,16,25,0,0,0,0,16,59,32,100,102,117,117,195,73,102,85,112,92,99,85,145,145,145,145,824,819,750,670,955,950,1925,1694,1486,1276,1228,1174,1143,803,1068,1041,794,662,763,742,703,706,689,650,933,887,1181,69,78,71,74,64,477,460,500,500,1158,112,631,791,1469,1080,2345,1748,1460,0,0,0,4606,1639,29971,29973,29970,29972,29971,29969,29972,29973,29973,29975,29975,29975,29975,29976,29976,29977,29977,29978,29978,29979,29978,29980,29979,29981,29980,29981,29981,29982]} 1. d4 {[%emt 0:00:02]} c5 {[%emt 0:05:00]} 2. c3 {[%emt 0:00:36]} Nf6 {[%emt 0:01:15]} 3. Nf3 {[%emt 0:00:27]} e6 {[%emt 0:00:45]} 4. Bf4 {[%emt 1:31:25]} Nh5 {[%emt 0:04:22]} 5. Bg5 {[%emt 0:00:00]} Qb6 {[%emt 0:02:37]} 6. Qc2 {[%emt 0:00:00]} (6. e4 $14) 6... h6 {[%emt 0:01:10]} 7. Bd2 {[%emt 0:00:00]} Nc6 {[%emt 0:00:15]} 8. e3 {[%emt 0:00:00]} d6 {[%emt 0:04:51]} 9. Bd3 {[%emt 0:00:00]} Bd7 {[%emt 0:00:16]} 10. O-O {[%emt 0:00:00]} Rc8 {[%emt 0:01:28]} 11. a3 {[%emt 0:00:00]} Be7 {[%emt 0:00:50]} 12. Bc1 {[%emt 0:00:00]} O-O {[%emt 0:01:00]} 13. Nbd2 {[%emt 0:00:00]} a5 {[%emt 0:05:31]} (13... cxd4 $11 14. exd4 Qc7) 14. Qd1 {[%emt 0:00:00]} (14. Nc4 $14 Qc7 15. Ncd2) 14... Qc7 {[%emt 0:04:28]} 15. Re1 {[%emt 0:00:00]} cxd4 {[%emt 0:05:03]} 16. exd4 {[%emt 0:00:00]} Nf4 {[%emt 0:02:19]} 17. Bc2 {[%emt 0:00:00]} b5 {[%emt 0:08:36]} 18. Ne4 {[%emt 0:00:00]} Ng6 {[%emt 0:22:01]} 19. Ng3 {[%emt 0:00:00]} d5 {[%emt 0:04:08]} 20. Qd3 {[%emt 0:00:00]} (20. Nh5 $14) 20... f5 {[%emt 0:00:40]} (20... Bd6 $5) 21. Bd2 {[%emt 0:00:00][%cal Og3e2]} a4 {[%emt 0:03:24]} 22. Re2 {[%emt 0:00:00][%cal Oa1e1]} Na5 {[%emt 0:00:19]} 23. Rae1 {[%emt 0:00:00]} Nc4 {[%emt 0:00:31]} (23... Qd6 $11) 24. Bc1 $2 {[%emt 0:00:00]} (24. Rxe6 $1 $16 Nxb2 25. Qe2) 24... Bd6 $11 {[%emt 0:00:07]} 25. Nh5 {[%emt 0:00:00]} Rf7 {[%emt 0:00:26]} 26. Qd1 {[%emt 0:00:00]} Rcf8 {[%emt 0:04:49]} 27. Bd3 {[%emt 0:00:31][%cal Oe2e6]} Re8 {[%emt 0:04:42]} 28. Qc2 {[%emt 0:01:38]} Qd8 {[%emt 0:02:00]} 29. Qd1 {[%emt 0:02:07]} Nh4 {[%emt 0:00:59] and ...Nxf3+ should not be overlooked} 30. Ne5 {[%emt 0:01:53]} Nxe5 {[%emt 0:03:33]} 31. dxe5 {[%emt 0:00:08]} Bc5 {[%emt 0:02:26]} 32. Rc2 {[%emt 0:00:15]} Bc6 {[%emt 0:00:32]} (32... Ref8 $5) 33. Bf1 {[%emt 0:01:43]} Ref8 {[%emt 0:02:01]} (33... Ng6 $11 {remains equal.}) 34. Nf4 $1 $16 {[%emt 0:03:22]} Re8 $2 {[%emt 0:01:08]} (34... Qe7 $16) 35. Be3 $2 {[%emt 0:01:36]} (35. g3 $1 $18) 35... Bf8 {[%emt 0:02:14]} 36. f3 {[%emt 0:00:48]} g5 {[%emt 0:00:30]} 37. Nh5 $1 {[%emt 0:01:13]} Ng6 {[%emt 0:01:26]} 38. Bd4 {[%emt 0:00:08]} Qc7 {[%emt 0:00:20]} 39. Rce2 {[%emt 0:01:01]} (39. Nf6+ Rxf6 40. exf6 e5 $14) (39. g3 $18) 39... Kh8 {[%emt 0:01:25]} (39... Nf4 $16) 40. Qd2 {[%emt 0:00:00]} ({Better is} 40. g3 $18) 40... Bg7 {[%emt 0:00:00]} (40... Nf4 $16) 41. g3 $18 {[%emt 0:02:22]} Bd7 {[%emt 0:07:17]} 42. Kg2 {[%emt 0:01:55]} Qd8 {[%emt 0:01:06]} 43. Qd3 {[%emt 0:01:37]} (43. Kh1 $142 $1) 43... Ne7 $16 {[%emt 0:01:55]} 44. Kg1 {[%emt 0:03:22] White is much more active.} Nc6 {[%emt 0:01:02]} 45. Nxg7 {[%emt 0:00:45]} (45. Qxb5 $2 Nxd4 46. Qd3 Nxe2+ 47. Rxe2 Qb6+ 48. Qd4 Rb8 49. Qxb6 Rxb6 $19) (45. Bf2 $16) 45... Kxg7 {[%emt 0:00:17]} 46. Qe3 {[%emt 0:00:52]} (46. Qxb5 $2 Nxd4 47. Qd3 Nxe2+ 48. Rxe2 Qb6+ 49. Rf2 f4 $19) 46... f4 {[%emt 0:04:10]} 47. Qd3 {[%emt 0:00:31]} fxg3 {[%emt 0:00:16]} 48. hxg3 {[%emt 0:00:04]} (48. Qxb5 $2 Nxd4 (48... Rxf3 49. Qxa4 gxh2+ 50. Rxh2 $19) 49. Qb4 Nxf3+ (49... Nxe2+ $2 50. Bxe2 gxh2+ 51. Kxh2 $19) 50. Kh1 Nxe1 (50... gxh2 $2 51. Rb1 $19) 51. Rxe1 gxh2 $19) 48... Ne7 {[%emt 0:00:19]} 49. Bh3 {[%emt 0:03:25]} Qc7 {[%emt 0:01:52]} (49... Nf5 $14) 50. Rf2 {[%emt 0:02:27]} Qc4 {[%emt 0:01:54]} 51. Qd2 {[%emt 0:00:32]} Nf5 {[%emt 0:01:37]} (51... Ref8 $16) 52. Bf1 {[%emt 0:01:52]} (52. f4 $18) 52... Qc7 {[%emt 0:01:39]} 53. Kg2 {[%emt 0:00:15]} Ref8 {[%emt 0:01:25]} 54. Bd3 {[%emt 0:01:28]} Be8 {[%emt 0:00:17]} 55. Qe2 {[%emt 0:01:16]} Qc6 {[%emt 0:00:17]} ({Black should play} 55... Kg8) 56. Rh1 {[%emt 0:00:48]} Rb7 {[%emt 0:06:38]} 57. f4 {[%emt 0:02:01][%cal Bf3f4,Bf4g5,Bg5h6][%mdl 32]} Qc7 $2 {[%emt 0:00:48][%mdl 8192]} (57... Bg6 $16) 58. fxg5 $18 {[%emt 0:03:08][%cal Of2f5]} Bg6 {[%emt 0:02:22]} 59. gxh6+ {[%emt 0:03:07]} (59. Bxb5 Nxd4 (59... hxg5 60. Bd3 $11) 60. cxd4 (60. gxh6+ $2 Kh7 $19) 60... Be4+ (60... hxg5 61. Bd3 $11) 61. Kh3 Rxf2 (61... Bxh1 $2 62. gxh6+ Kxh6 63. Rxf8 $18) 62. Qxf2 Bxh1 $19 (62... Rxb5 63. Qf6+ Kg8 64. Rf1 $11)) 59... Kg8 {[%emt 0:02:28]} 60. g4 {[%emt 0:05:29]} (60. Bxb5 Nxd4 61. Rxf8+ (61. h7+ $2 Bxh7 62. Qg4+ Qg7 $19) 61... Kxf8 62. Rf1+ (62. cxd4 Be4+ 63. Kh2 Bxh1 $11) 62... Nf5 $11) 60... Nxd4 {[%emt 0:00:15]} 61. Rxf8+ {[%emt 0:00:26]} Kxf8 {[%emt 0:00:01]} 62. cxd4 {[%emt 0:00:14]} Qh7 {[%emt 0:01:09]} 63. Rf1+ {[%emt 0:01:07]} (63. Bxb5 $2 Be4+ 64. Kg3 Bxh1 65. Qf1+ Kg8 $19) 63... Kg8 {[%emt 0:00:45] [#]} 64. Qf3 $1 {[%emt 0:02:21]} Rb8 {[%emt 0:01:29] Dodges Qf8+} 65. Bxg6 {[%emt 0:01:03]} Qxg6 {[%emt 0:00:01][%mdl 4096] Endgame KQR-KQR. White is two pawns up.} 66. Kg3 {[%emt 0:00:17]} Kh7 {[%emt 0:01:02]} 67. Qf7+ {[%emt 0:00:30]} Qxf7 {[%emt 0:00:05]} 68. Rxf7+ {[%emt 0:00:02]} Kxh6 {[%emt 0:00:07] KR-KR. White is a pawn up.} 69. Rf6+ {[%emt 0:00:23]} Kg5 {[%emt 0:00:04]} 70. Rxe6 {[%emt 0:00:34]} b4 {[%emt 0:00:02]} 71. Rd6 $2 {[%emt 0:01:14]} (71. Rf6 $18 bxa3 72. Rf5+ (72. bxa3 Rb3+ 73. Rf3 Kg6 $18) 72... Kg6 73. bxa3) 71... bxa3 $14 {[%emt 0:01:33]} 72. bxa3 {[%emt 0:00:01]} Rb3+ {[%emt 0:00:50]} 73. Kf2 {[%emt 0:00:01]} Rxa3 $2 {[%emt 0:00:10][%mdl 8192]} (73... Kf4 $14) 74. Rxd5 $18 {[%emt 0:00:11]} Rb3 {[%emt 0:00:21][%cal Og5f4]} 75. Ra5 {[%emt 0:00:39]} (75. e6+ Kf6 $14) 75... a3 {[%emt 0:01:10]} (75... Kf4 $142 76. Rxa4 Rb2+ 77. Ke1 Kxg4) 76. Ke2 $2 {[%emt 0:01:16]} (76. d5 $18 {and d6 should not be overlooked} Kxg4 77. e6 Rb2+ 78. Ke1 (78. Ke3 Kf5 $18)) 76... Rh3 $2 {[%emt 0:01:04][%mdl 8192]} (76... Kxg4 $16 77. e6 Kf4) 77. e6+ {[%emt 0:00:42][%cal Be5e6,Be6e7][%mdl 32]} Kf6 {[%emt 0:00:11]} 78. d5 {[%emt 0:00:24][%cal Og4g5]} a2 {[%emt 0:00:16]} 79. g5+ {[%emt 0:00:39]} (79. Rxa2 $2 Rh2+ 80. Ke3 Rxa2 $19) 79... Ke7 {[%emt 0:01:19]} 80. Kd2 $2 {[%emt 0:01:05]} (80. Rxa2 $2 Rh2+ 81. Ke3 Rxa2 $19) (80. Ra7+ $18 Kd6 81. e7 (81. Rxa2 $2 Rh2+ 82. Kf3 Rxa2 $19)) 80... Rh1 $1 $11 {[%emt 0:00:16]} 81. Ra7+ $1 {[%emt 0:00:23]} (81. Rxa2 $2 Rh2+ 82. Ke3 Rxa2 $19) 81... Kd6 $2 {[%emt 0:00:58][%mdl 8192] [#]} (81... Ke8 $11 82. Ra8+ (82. Rxa2 $2 Rh2+ 83. Ke3 Rxa2 $19) 82... Ke7 83. Ra7+ (83. Rxa2 $2 Rh2+ 84. Kd3 Rxa2 $19) 83... Kd8 84. Ra8+ (84. Rxa2 $2 Rh2+ 85. Ke3 Rxa2 $19) (84. e7+ $2 Ke8 $19) 84... Ke7) 82. e7 $1 $18 {[%emt 0:00:14]} (82. Rxa2 $2 {loses.} Rh2+ (82... Kxd5 83. e7 $16) 83. Ke3 Rxa2 $19) 82... a1=Q {[%emt 0:00:34]} 83. Rxa1 {[%emt 0:00:36]} (83. e8=R Qd4+ (83... Qxa7 $2 84. Ke2 $19) 84. Ke2 Rh2+ (84... Qxa7 {gets mated.} 85. Rd8+ Ke7 86. Rf8 Kxf8 87. Kf3 Rh3+ 88. Kg4 Qe3 89. Kf5 Rf3+ 90. Kg6 Qe8+ 91. Kh7 Qh5#) 85. Kf3 Rf2+ (85... Qxa7 86. Kg4 Rg2+ 87. Kf5 Qf7+ 88. Ke4 Qxe8+ 89. Kf3 Qe2+ 90. Kf4 Rf2+ 91. Kg3 Qf3+ 92. Kh4 Rh2#) (85... Rh3+ 86. Kg2 Qg4+ 87. Kf2 Qf3+ 88. Ke1 Rh1+ 89. Kd2 Rh2+ 90. Re2 Rxe2+ 91. Kd1 Qf1#) 86. Kg3 Qf4+ 87. Kh3 Rh2#) 83... Rh2+ {[%emt 0:00:03]} 84. Ke3 {[%emt 0:00:14]} Kxe7 {[%emt 0:00:20]} 85. Kf4 {[%emt 0:00:56]} Kd6 {[%emt 0:00:42]} 86. Rd1 {[%emt 0:00:27]} Rf2+ {[%emt 0:00:47]} 87. Kg4 {[%emt 0:00:09]} Rg2+ {[%emt 0:00:26]} 88. Kf5 {[%emt 0:00:09]} Rf2+ {[%emt 0:00:07]} 89. Kg6 {[%emt 0:00:02]} Rg2 {[%emt 0:00:11]} 90. Kf6 {[%emt 0:00:00]} Rf2+ {[%emt 0:00:06] [#]} 91. Kg7 $1 {[%emt 0:00:07]} Rg2 {[%emt 0:00:03]} 92. g6 {[%emt 0:00:01][%cal Bg5g6,Bg6g7][%mdl 32]} Rg3 {[%emt 0:00:12]} 93. Kf7 {[%emt 0:00:11]} Rf3+ {[%emt 0:00:03]} 94. Kg8 {[%emt 0:00:04]} Rg3 {[%emt 0:00:12]} 95. g7 {[%emt 0:00:17]} Rg2 {[%emt 0:00:14]} 96. Rh1 {[%emt 0:01:27]} 1-0

[Event "Azerbaijan-ch 1st League 2025"]
[Site "Baku"]
[Date "2025.01.08"]
[Round "3.15"]
[White "Gulumov, Muthat"]
[Black "Ibrahimli, Suat"]
[Result "0-1"]
[Annotator "TA"]
[ECO "C52"]
[WhiteElo "2054"]
[BlackElo "1949"]
[PlyCount "48"]
[EventDate "2025.01.05"]
[EventType "swiss"]
[EventCountry "AZE"]
[SourceTitle "playchess.com"]
[Source "ChessBase"]
[SourceQuality "1"]
[TimeControl "40/5400+30:1800+30"]

{[%evp 15,48,-39,-12,-11,-10,-18,-17,-39,-30,-31,-31,-53,-50,-37,-47,-40,-28,-29,-27,-25,-25,-20,-12,-75,-9,-64,-35,-40,-50,-99,-94,-627,-629,-622,-589]} 1. e4 {[%emt 0:00:01]} e5 {[%emt 0:00:10]} 2. Nf3 {[%emt 0:00:09]} Nc6 {[%emt 0:00:03]} 3. Bc4 {[%emt 0:00:20]} Bc5 {[%emt 0:00:41]} 4. b4 {[%emt 0:00:12]} Bxb4 {[%emt 0:00:05]} 5. c3 {[%emt 0:00:04]} Ba5 {[%emt 0:00:03]} 6. d4 {[%emt 0:00:05]} d6 {[%emt 0:00:01]} 7. Qb3 {[%emt 0:00:17]} Qd7 {[%emt 0:00:03]} 8. dxe5 {[%emt 0:00:40]} dxe5 {[%emt 0:27:39]} 9. O-O {[%emt 0:01:15] [#] Ng5 is the strong threat.} Bb6 {[%emt 0:00:46]} 10. Rd1 {[%emt 0:00:43]} Qe7 {[%emt 0:09:40]} 11. Ba3 {[%emt 0:07:15] The position is equal.} Qf6 {[%emt 0:00:17]} 12. Bb5 {[%emt 0:04:08]} Bg4 {[%emt 0:05:40]} 13. Bxc6+ {[%emt 0:10:25]} bxc6 {[%emt 0:00:22]} 14. Nbd2 {[%emt 0:00:30]} Ne7 {[%emt 0:01:34]} 15. h3 {[%emt 0:00:12]} Be6 {[%emt 0:01:11]} 16. c4 {[%emt 0:06:36]} c5 {[%emt 0:15:59]} 17. Bxc5 {[%emt 0:01:21]} O-O $1 {[%emt 0:00:09]} (17... Bxc5 $6 18. Qb5+ Bd7 19. Qxc5 $16) 18. Qa3 {[%emt 0:02:47]} Rfe8 {[%emt 0:01:16]} (18... Bxc5 {simplifies} 19. Qxc5 Ng6 20. Kh1 Rfd8) 19. Bb4 {[%emt 0:06:36] [#]} (19. Bxe7 $11 {remains equal.} Qxe7 20. Qxe7 Rxe7 21. Nxe5) 19... a5 {[%emt 0:04:11]} ({Black should try} 19... Ng6 $1 $17 {aiming for ...Nf4.} 20. c5 a5 21. cxb6 axb4 22. Qxb4 cxb6) 20. Bc3 {[%emt 0:00:33]} (20. Bxe7 $11 Qxe7 (20... Rxe7 21. c5 $16) 21. Qxe7 Rxe7 22. Nxe5 Bxh3 23. Ndf3) 20... Nc6 {[%emt 0:01:10]} 21. c5 {[%emt 0:01:20][%cal Oa3a4] And now Qa4! would win.} Qe7 {[%emt 0:00:15]} 22. Nxe5 {[%emt 0:02:29]} (22. Bxe5 $15 Nxe5 (22... Qxc5 23. Qxc5 Bxc5 24. Rdc1 $14) (22... Bxc5 23. Qc3 $17) 23. Nxe5 Qxc5 (23... Bxc5 24. Qc3 $17) 24. Qxc5 Bxc5 25. Ndf3) 22... Bxc5 $17 {[%emt 0:01:23]} 23. Nxc6 $4 {[%emt 0:01:54][%mdl 8192]} (23. Qc1 $17 Bxf2+ 24. Kxf2 Qc5+ 25. Kg3 Nxe5 26. Nb3) 23... Bxf2+ $19 {[%emt 0:00:35]} ({Weaker is} 23... Bxa3 24. Nxe7+ Bxe7 (24... Rxe7 25. Nf1 $15) 25. Nf3 $15) 24. Kxf2 {[%emt 0:00:06]} Qxa3 {[%emt 0:29:17] Weighted Error Value: White=0.45/Black=0.10 (very precise) .  Loses game:     	White=1     	---        Mistake:       	White=3     	Black=1      Inaccurate:     	---       	Black=1      OK:         	White=5     	Black=6      Best:        	---       	Black=3      Strong:       	---       	Black=1} 0-1

[Event "Azerbaijan-ch 1st League 2025"]
[Site "Baku"]
[Date "2025.01.08"]
[Round "3.16"]
[White "Garakhanov, Shamsi"]
[Black "Kazimzade, Mahammad"]
[Result "1-0"]
[Annotator "TA"]
[ECO "E00"]
[WhiteElo "2022"]
[BlackElo "1743"]
[PlyCount "89"]
[EventDate "2025.01.05"]
[EventType "swiss"]
[EventCountry "AZE"]
[SourceTitle "playchess.com"]
[Source "ChessBase"]
[SourceQuality "1"]
[TimeControl "40/5400+30:1800+30"]

{[%evp 12,89,0,19,10,17,22,12,43,51,72,64,74,60,127,119,130,102,295,289,278,202,140,84,247,147,169,195,188,187,162,159,198,198,191,141,285,307,321,313,433,429,620,608,566,530,591,577,739,742,731,744,999,985,1176,1018,1425,1533,1287,1727,1939,1545,1665,1372,1233,1004,1216,1115,1561,1583,1326,1587,2409,2420,5014,4927,29994,869,29995,29996]} 1. d4 {[%emt 0:00:04]} Nf6 {[%emt 0:00:09]} 2. c4 {[%emt 0:00:06]} e6 {[%emt 0:00:13]} 3. g3 {[%emt 0:00:04]} Bb4+ {[%emt 0:00:41]} 4. Nd2 {[%emt 0:00:06]} c5 {[%emt 0:02:31]} 5. a3 {[%emt 0:01:27]} Bxd2+ {[%emt 0:01:23]} 6. Qxd2 {[%emt 0:00:10]} cxd4 {[%emt 0:01:17]} 7. Nf3 {[%emt 0:03:07]} O-O {[%emt 0:04:51]} 8. Bg2 {[%emt 0:02:15][%cal Oe1g1]} Nc6 {[%emt 0:02:16]} 9. Nxd4 {[%emt 0:02:44]} Ne7 {[%emt 0:02:55]} 10. O-O {[%emt 0:01:05]} d5 {[%emt 0:01:20]} 11. cxd5 {[%emt 0:01:02]} Nexd5 {[%emt 0:00:17]} 12. Rd1 {[%emt 0:09:16]} Qe7 {[%emt 0:15:02]} ({Black should play} 12... e5 $14) 13. e4 $16 {[%emt 0:04:39]} Nb6 {[%emt 0:00:20]} 14. b3 {[%emt 0:01:42]} Bd7 $2 {[%emt 0:03:03]} (14... e5 $16) 15. a4 $18 {[%emt 0:00:55]} Rfd8 {[%emt 0:00:48]} 16. Ba3 {[%emt 0:01:33]} Qe8 {[%emt 0:00:23]} 17. a5 {[%emt 0:01:10] White is much more active. Black is weak on the dark squares} (17. f4 $142) 17... Nc8 $2 {[%emt 0:00:25]} (17... e5 $16) 18. Qb4 {[%emt 0:00:44]} (18. a6 $18 Nb6 19. axb7) 18... Rb8 {[%emt 0:04:49]} 19. Rd2 {[%emt 0:01:41]} a6 {[%emt 0:02:26] [#]} 20. Rad1 $1 $36 {[%emt 0:02:00][%mdl 2048] White is in control.} Na7 {[%emt 0:01:09] Inhibits Nc6.} 21. Qb6 {[%emt 0:01:05]} Nc6 {[%emt 0:02:07]} 22. Nxc6 {[%emt 0:00:19]} bxc6 {[%emt 0:00:05]} 23. Qe3 {[%emt 0:03:17]} ({Better is} 23. Qxa6 $18 {Qd3 would now be deadly.} Ra8 24. Qb6) 23... Rb5 {[%emt 0:08:22]} (23... c5 $16 {was called for.} 24. Bxc5 Bc6) 24. Bc5 {[%emt 0:00:49]} Rdb8 {[%emt 0:02:10]} 25. b4 {[%emt 0:00:23]} e5 {[%emt 0:06:32]} 26. Bf1 {[%emt 0:01:18]} Rxb4 {[%emt 0:01:08]} (26... Rxc5 $142 27. bxc5 Bg4) 27. Bxb4 {[%emt 0:00:08]} ({Not} 27. Bxa6 Ra4 $18) 27... Rxb4 {[%emt 0:00:04]} 28. f3 {[%emt 0:00:10]} Ra4 {[%emt 0:03:35]} 29. Qa7 {[%emt 0:00:37]} Rd4 {[%emt 0:01:26]} 30. Rxd4 {[%emt 0:00:05]} exd4 {[%emt 0:00:25]} 31. Qxd4 {[%emt 0:00:04]} h6 {[%emt 0:00:57]} 32. Bxa6 {[%emt 0:00:15]} Qe7 {[%emt 0:01:28]} 33. Be2 {[%emt 0:00:39][%cal Ba6e2,Be2d3,Bd3c4][%mdl 32]} Kh7 {[%emt 0:06:02]} 34. a6 {[%emt 0:00:10][%cal Ba5a6,Ba6a7][%mdl 32]} Bc8 {[%emt 0:00:39][%cal Bd7c8,Bc8b7,Bb7a8][%mdl 32]} 35. a7 {[%emt 0:00:15]} Bb7 {[%emt 0:00:05]} 36. Bd3 {[%emt 0:00:40] White wants to mate with e5+.} g6 {[%emt 0:00:17]} 37. Kg2 {[%emt 0:00:34]} c5 {[%emt 0:01:12]} 38. Qc4 {[%emt 0:00:36]} Nd7 {[%emt 0:00:43]} 39. Qa2 {[%emt 0:00:35]} Ba8 {[%emt 0:01:13]} 40. Bc4 {[%emt 0:00:00]} Ne5 {[%emt 0:00:00]} 41. Bd5 {[%emt 0:00:52]} Qf6 {[%emt 0:00:50]} 42. Rf1 {[%emt 0:00:57]} ({Weaker is} 42. Bxa8 Qxf3+ 43. Kg1 Qxd1+ 44. Kg2 Qf3+ 45. Kg1 Qd1+ 46. Kg2 Qf3+ 47. Kg1 Qe3+ 48. Kf1 (48. Qf2 Qa3 $17) 48... Qf3+ 49. Kg1 $11) 42... Nc6 {[%emt 0:00:53]} 43. Bxc6 {[%emt 1:32:22]} Qxc6 {[%emt 0:00:22]} 44. Qxf7+ {[%emt 0:00:00]} Kh8 {[%emt 0:00:09]} 45. Rb1 {[%emt 0:00:00]} 1-0

[Event "Azerbaijan-ch 1st League 2025"]
[Site "Baku"]
[Date "2025.01.08"]
[Round "3.17"]
[White "Baghirov, Mahammad"]
[Black "Salimov, Shovkat"]
[Result "0-1"]
[Annotator "TA"]
[ECO "A26"]
[WhiteElo "1932"]
[BlackElo "1977"]
[PlyCount "112"]
[EventDate "2025.01.05"]
[EventType "swiss"]
[EventCountry "AZE"]
[SourceTitle "playchess.com"]
[Source "ChessBase"]
[SourceQuality "1"]
[TimeControl "40/5400+30:1800+30"]

{[%evp 23,112,-28,-9,-45,-45,-56,32,4,8,11,13,8,13,0,27,14,48,37,37,7,16,0,22,17,29,-17,33,18,24,16,29,0,0,0,48,40,66,55,150,70,77,81,184,110,96,115,103,91,101,115,101,110,125,75,113,35,35,-46,29,0,93,75,94,106,185,187,186,190,188,157,147,8,6,6,8,0,0,-604,-589,-575,-553,-425,-294,-29993,-29994,-29994,-29995,-29996,-29996,-29996,-29997]} 1. c4 {[%emt 0:00:18]} Nf6 {[%emt 0:01:55]} 2. Nc3 {[%emt 0:00:07]} e5 {[%emt 0:01:14]} 3. g3 {[%emt 0:00:15]} g6 {[%emt 0:01:10]} 4. Bg2 {[%emt 0:00:13]} Bg7 {[%emt 0:00:02]} 5. d3 {[%emt 0:00:08]} O-O {[%emt 0:00:07]} 6. Nf3 {[%emt 0:00:41]} Re8 {[%emt 0:00:07]} 7. Bg5 {[%emt 0:01:38]} h6 {[%emt 0:00:15]} 8. Bxf6 {[%emt 0:00:08]} Bxf6 {[%emt 0:00:07]} 9. Nd2 {[%emt 0:00:21]} d6 {[%emt 0:00:50]} 10. O-O {[%emt 0:00:07]} Bg7 {[%emt 0:00:43]} 11. Rb1 {[%emt 0:00:06]} a5 {[%emt 0:00:19]} 12. a3 {[%emt 0:00:07]} Nc6 {[%emt 0:01:04]} 13. b4 {[%emt 0:00:10]} axb4 {[%emt 0:00:04]} 14. axb4 {[%emt 0:00:03]} Kh7 {[%emt 0:09:33]} (14... e4 $1 $15 15. b5 (15. Ncxe4 f5 $17) 15... Ne7) 15. Nd5 {[%emt 0:03:25]} Ne7 {[%emt 0:03:22]} 16. b5 {[%emt 0:02:02]} Nxd5 {[%emt 0:00:18]} 17. Bxd5 {[%emt 0:03:58]} Qd7 {[%emt 0:01:47]} 18. Qc2 {[%emt 0:01:56]} f5 {[%emt 0:02:58][%cal Oe5e4]} 19. Bg2 {[%emt 0:01:26]} Bf6 {[%emt 0:17:43]} 20. Rfc1 {[%emt 0:02:36]} Re7 {[%emt 0:11:27]} 21. Nb3 {[%emt 0:08:22]} Qe8 {[%emt 0:06:09]} 22. Nd2 {[%emt 0:10:36]} h5 {[%emt 0:03:46]} 23. c5 {[%emt 0:02:24]} dxc5 {[%emt 0:02:22]} 24. Nb3 {[%emt 0:01:25]} (24. Qxc5 $142 h4 25. gxh4) 24... e4 {[%emt 0:09:10]} ({Black should try} 24... Qf7 $11) 25. Nxc5 $14 {[%emt 0:02:43][%cal Rd3e4]} b6 {[%emt 0:01:53]} 26. dxe4 {[%emt 0:00:38][%cal Oe4e5]} Ra3 {[%emt 0:01:22]} (26... bxc5 27. e5 Rxe5 28. Bxa8 $18) 27. Nd3 {[%emt 0:04:05][%cal Oe4e5]} fxe4 {[%emt 0:01:12]} (27... Rc3 $6 28. Qa4 $16) 28. Nf4 {[%emt 0:00:27]} Bb7 {[%emt 0:11:27] Dodges Nd5} (28... e3 $11 29. fxe3 Bf5) 29. h4 {[%emt 0:01:00]} Qa8 {[%emt 0:03:42]} 30. e3 {[%emt 0:01:32]} Qa5 {[%emt 0:02:52]} (30... Be5 $14) 31. Qd1 {[%emt 0:00:50]} (31. Qxc7 $1 $16 {aiming for Qd6.} Rxc7 32. Rxc7+ Kh6 33. Rxb7) 31... Qa8 $1 {[%emt 0:00:59]} 32. Rc4 {[%emt 0:52:43]} Qe8 {[%emt 0:02:20]} (32... Ra2 $16) 33. Nd5 {[%emt 0:00:00]} (33. Qc1 $18 Ra2 34. Rxc7) 33... Bxd5 $16 {[%emt 0:00:32]} 34. Qxd5 {[%emt 0:00:00]} Rd3 {[%emt 0:00:30]} 35. Qb7 {[%emt 0:00:00]} Be5 {[%emt 0:02:17]} 36. Bxe4 {[%emt 0:00:00]} Rd2 {[%emt 0:00:39] [#]} 37. Rc2 $1 {[%emt 0:00:00]} Rd8 {[%emt 0:01:26]} 38. Rbc1 {[%emt 0:00:00] Black is weak on the light squares} (38. Bc6 $142 Qf7 39. Kg2) 38... Kh6 {[%emt 0:00:58]} 39. Bg2 {[%emt 0:00:00]} (39. Qc6 $16) 39... Qxb5 $14 {[%emt 0:00:38]} 40. e4 {[%emt 0:00:00]} ({Better is} 40. Qf3 $14) 40... Bd6 {[%emt 0:01:11]} (40... Rf7 $15) 41. f4 {[%emt 0:00:00]} (41. Qa7 {simplifies} Qa5 42. Qxa5 bxa5 43. Rd1) 41... c5 {[%emt 0:01:33]} (41... Red7 $11 42. Qc6 Qxc6 43. Rxc6 Bc5+ 44. R1xc5 Rd1+ (44... bxc5 45. f5 $15) 45. Kh2 bxc5) 42. Qd5 $16 {[%emt 0:00:00]} Qe8 {[%emt 0:01:22][%cal Od6f4] aiming for ...Bxf4!.} 43. Qg5+ {[%emt 0:00:00]} Kh7 {[%emt 0:02:36]} (43... Kg7 $16 {keeps fighting.}) 44. e5 $18 {[%emt 0:00:00]} Bxe5 {[%emt 0:01:53]} 45. fxe5 {[%emt 0:00:00]} Rxe5 {[%emt 0:00:02]} 46. Qf6 {[%emt 0:00:00]} Rd3 {[%emt 0:00:26]} 47. Kh2 {[%emt 0:00:00]} (47. Qf2 $16) 47... Rf5 $1 $11 {[%emt 0:00:58]} 48. Qxb6 {[%emt 0:00:00]} Qe5 $1 {[%emt 0:03:02]} 49. Qa7+ {[%emt 0:00:00]} (49. Qxc5 Qxg3+ (49... Rxg3 $2 {too greedy.} 50. Qxe5 Rxg2+ 51. Rxg2 $18) 50. Kh1 Rxc5 (50... Qxh4+ $2 51. Kg1 $19) 51. Bf1 Rd1 (51... Qxh4+ {is a self mate.} 52. Kg1 Rg3+ 53. Bg2 Qe4 54. Kf1 Rxg2 55. Rxg2 Rxc1+ 56. Kf2 Rc2+ 57. Kf1 Qxg2+ 58. Ke1 Qh1#)) 49... Kh6 {[%emt 0:00:18] Some like it hot} 50. Qa1 $2 {[%emt 0:00:00][%mdl 8192]} (50. Qa8 $11) 50... Qxg3+ $19 {[%emt 0:00:21]} 51. Kg1 {[%emt 0:00:00][%cal Ra1h8] [#]} Qe3+ $1 {[%emt 0:01:08]} 52. Kh1 {[%emt 0:00:00]} Rd4 {[%emt 0:00:57]} 53. Rc4 $2 {[%emt 0:00:00]} (53. Ba8 $19 Rf8 (53... Rxh4+ 54. Rh2 $11) 54. Bc6) 53... Rff4 {[%emt 0:01:06][%csl LRc4,LRh4]} 54. Rxd4 {[%emt 0:00:00]} cxd4 {[%emt 0:00:16]} 55. Bb7 {[%emt 0:00:00]} Qg3 {[%emt 0:03:33][%cal Rf4h4]} 56. Bg2 {[%emt 0:00:00]} Qxh4+ {[%emt 0:00:11]} 0-1